bitfinex-derivatives/quotes_SOLF0:USTF0_20240930
["timestamp","ask_amount","ask_price","bid_price","bid_amount"]
[1727717491057,12.1586,154.89,154.85,0.12502]
[1727717491253,12.1586,154.89,154.85,3.35422]
[1727717491455,12.1586,154.89,154.85,0.12502]
[1727717491654,13.95,154.91,154.85,0.12502]
[1727717491848,13.95,154.91,154.86,3.229]
[1727717492351,13.95,154.89,154.85,0.12502]
[1727717493055,3.2292,154.86,154.85,0.12502]
[1727717494061,13.95,154.87,154.8,72.9504]
[1727717494257,13.95,154.85,154.8,69.72]
[1727717494655,3.2301,154.82,154.8,69.72]
[1727717494856,13.95,154.83,154.79,10.12502]
[1727717495255,13.95,154.88,154.73,10.12502]
[1727717495256,13.95,154.81,154.73,10.12502]
[1727717495559,13.95,154.88,154.73,10.12502]
[1727717495560,13.95,154.78,154.73,10.12502]
[1727717495751,3.2317,154.74,154.73,10.12502]
[1727717496661,17.1814,154.76,154.73,10.12502]
[1727717496857,13.95,154.76,154.73,10.12502]
[1727717498262,3.2315,154.75,154.73,10.12502]
[1727717500072,3.2317,154.74,154.73,10.12502]
[1727717503281,17.1817,154.74,154.73,10.12502]
[1727717503787,3.27428721,154.77,154.73,10.12502]
[1727717504080,13.95,154.77,154.73,10.12502]
[1727717504982,17.1812,154.77,154.73,10.12502]
[1727717505476,3.2313,154.76,154.73,13.35682]
[1727717508385,3.231,154.77,154.74,3.2315]
[1727717508587,13.95,154.78,154.73,10.12502]
[1727717509083,13.95,154.77,154.73,13.35672]
[1727717509478,13.95,154.79,154.73,10.12502]
[1727717509679,17.1807,154.79,154.73,10.12502]
[1727717510384,17.1807,154.79,154.75,3.2312]
[1727717511481,3.27561284,154.85,154.74,1.3118]
[1727717511482,17.1803,154.81,154.77,3.2309]
[1727717511687,17.1803,154.81,154.75,2.6852]
[1727717512389,13.95,154.81,154.75,2.6852]
[1727717512687,3.2304,154.8,154.77,3.2309]
[1727717515281,13.95,154.79,154.75,2.6852]
[1727717515778,3.2309,154.78,154.75,2.6852]
[1727717517184,13.95,154.81,154.75,2.6852]
[1727717517480,3.2308,154.79,154.75,2.6852]
[1727717518087,3.2308,154.79,154.76,3.2312]
[1727717519185,13.95,154.81,154.75,2.6852]
[1727717519485,3.231,154.77,154.75,2.6852]
[1727717520089,3.2309,154.78,154.75,2.6852]
[1727717520691,3.2309,154.78,154.75,5.9165]
[1727717520890,3.2309,154.78,154.75,2.6852]
[1727717522092,3.2305,154.8,154.77,3.231]
[1727717523081,3.2307,154.79,154.77,3.231]
[1727717523287,3.2307,154.79,154.76,3.2312]
[1727717524695,13.95,154.81,154.76,3.2312]
[1727717524995,3.2301,154.82,154.79,3.2306]
[1727717525189,13.95,154.83,154.75,2.6852]
[1727717525694,3.2303,154.81,154.78,3.2307]
[1727717525893,13.95,154.83,154.78,3.2307]
[1727717526197,3.27561284,154.85,154.75,2.6852]
[1727717526198,13.95,154.81,154.75,2.6852]
[1727717526886,3.2306,154.8,154.76,3.2312]
[1727717527090,13.95,154.81,154.76,3.2312]
[1727717527794,3.2305,154.8,154.76,3.2312]
[1727717527992,13.95,154.81,154.76,3.2312]
[1727717528200,13.95,154.81,154.75,2.6852]
[1727717528492,3.2308,154.79,154.75,2.6852]
[1727717528695,3.2308,154.79,154.76,3.2311]
[1727717528890,13.95,154.83,154.75,2.6852]
[1727717529095,13.95,154.83,154.75,16.6352]
[1727717529688,14.07502,154.85,154.75,16.6352]
[1727717530286,14.07502,154.85,154.8,3.2303]
[1727717530287,3.2299,154.83,154.8,3.2303]
[1727717530490,14.07502,154.85,154.8,3.2303]
[1727717530891,3.2297,154.84,154.8,3.2303]
[1727717531099,14.07502,154.85,154.8,3.2303]
[1727717531986,3.23,154.82,154.8,3.2303]
[1727717532697,14.07502,154.85,154.75,16.6352]
[1727717532898,3.23,154.82,154.79,3.2305]
[1727717533302,13.95,154.83,154.75,16.6352]
[1727717533498,3.2303,154.81,154.78,3.2307]
[1727717533900,13.95,154.83,154.75,2.6852]
[1727717534100,3.2307,154.79,154.77,3.2309]
[1727717534596,3.2305,154.8,154.77,3.2309]
[1727717536003,3.2305,154.8,154.75,2.6852]
[1727717536305,3.2305,154.8,154.78,3.2308]
[1727717537096,3.2305,154.8,154.77,3.2309]
[1727717537296,3.2308,154.78,154.75,2.6852]
[1727717537496,13.95,154.81,154.75,5.9166]
[1727717538798,13.95,154.81,154.75,2.6852]
[1727717539405,3.231,154.78,154.75,5.9166]
[1727717539702,13.95,154.79,154.75,2.6852]
[1727717539901,13.95,154.79,154.74,1.3118]
[1727717540101,13.95,154.77,154.74,1.3118]
[1727717541006,3.2317,154.74,154.73,10.12502]
[1727717541505,3.2322,154.72,154.69,73.0326]
[1727717541694,13.95,154.7,154.67,0.12502]
[1727717542896,13.95,154.72,154.67,0.12502]
[1727717543305,13.95,154.72,154.67,3.35802]
[1727717543806,17.1821,154.72,154.68,3.2329]
[1727717544201,13.95,154.74,154.68,3.2329]
[1727717544503,13.95,154.76,154.71,3.2323]
[1727717544899,17.1813,154.76,154.67,0.12502]
[1727717545204,13.95,154.78,154.68,13.95]
[1727717545403,3.2312,154.77,154.72,3.2319]
[1727717545998,3.2312,154.77,154.72,3.232]
[1727717546202,13.95,154.78,154.72,3.232]
[1727717546403,3.2313,154.76,154.72,3.232]
[1727717546611,13.95,154.78,154.71,3.2322]
[1727717546906,3.2314,154.76,154.71,3.2322]
[1727717547610,3.2315,154.75,154.71,3.2322]
[1727717548704,13.95,154.78,154.71,3.2322]
[1727717548905,13.95,154.78,154.68,13.95]
[1727717549307,3.2316,154.75,154.68,13.95]
[1727717549608,3.2316,154.75,154.72,3.232]
[1727717550809,3.2316,154.75,154.71,3.2322]
[1727717551910,3.2316,154.75,154.72,3.2321]
[1727717554920,13.95,154.78,154.7,13.95]
[1727717555217,0.12502,154.79,154.71,5.89099189]
[1727717555414,0.12502,154.79,154.71,7.23089189]
[1727717555809,3.231,154.77,154.74,3.2315]
[1727717558114,0.12502,154.79,154.72,13.95]
[1727717558507,0.12502,154.79,154.77,3.2309]
[1727717558714,0.12502,154.79,154.72,13.95]
[1727717559121,0.12502,154.79,154.77,3.2308]
[1727717560320,0.12502,154.79,154.73,7.25298516]
[1727717560507,14.07502,154.79,154.71,4.0161]
[1727717560711,14.07502,154.79,154.72,7.25311999]
[1727717560915,14.07502,154.79,154.71,4.0161]
[1727717560916,3.2313,154.76,154.71,4.0161]
[1727717561419,3.2313,154.76,154.72,7.25884956]
[1727717561623,3.2313,154.76,154.71,4.0161]
[1727717561915,3.2313,154.76,154.73,3.2317]
[1727717562122,13.95,154.77,154.71,4.0161]
[1727717562323,13.95,154.77,154.72,7.26361755]
[1727717562627,13.95,154.77,154.72,3.2319]
[1727717563022,13.95,154.75,154.66,83.77]
[1727717563218,13.95,154.75,154.68,18.88659599]
[1727717563419,13.95,154.75,154.69,18.88659599]
[1727717563620,3.2321,154.72,154.7,7.26407538]
[1727717563821,13.95,154.73,154.67,2.68672]
[1727717564022,13.95,154.73,154.68,18.89687616]
[1727717564327,17.1819,154.73,154.7,3.2324]
[1727717566024,17.1819,154.73,154.67,2.68672]
[1727717566025,13.95,154.73,154.67,2.68672]
[1727717566225,13.95,154.73,154.68,18.90264428]
[1727717566425,13.95,154.73,154.69,7.2702478]
[1727717566620,13.95,154.73,154.67,2.68672]
[1727717566827,3.2324,154.71,154.68,22.13494854]
[1727717567123,3.2324,154.71,154.69,7.27005713]
[1727717567327,3.2324,154.71,154.68,3.2328]
[1727717567531,3.2324,154.71,154.69,7.26986356]
[1727717567832,3.2324,154.71,154.69,3.2327]
[1727717568930,3.2324,154.71,154.68,3.2328]
[1727717569135,3.2324,154.71,154.69,7.26964449]
[1727717569427,3.2327,154.69,154.67,0.12502]
[1727717569631,17.1827,154.69,154.67,0.12502]
[1727717569932,3.2329,154.68,154.67,0.12502]
[1727717570118,3.2329,154.68,154.67,7.39504775]
[1727717570529,3.2329,154.68,154.67,0.12502]
[1727717572619,3.2334,154.66,154.63,69.82]
[1727717572819,13.95,154.66,154.64,18.89402998]
[1727717573027,13.95,154.66,154.65,7.26695114]
[1727717573229,13.95,154.66,154.63,69.82]
[1727717573527,13.95,154.66,154.64,7.26500973]
[1727717573728,3.2342,154.62,154.61,0.12502]
[1727717574132,13.95,154.65,154.61,0.12502]
[1727717574328,3.2338,154.64,154.61,0.12502]
[1727717574631,17.22910558,154.65,154.61,0.12502]
[1727717575133,3.2342,154.62,154.61,0.12502]
[1727717576437,17.1842,154.62,154.61,0.12502]
[1727717577733,3.17913087,154.66,154.55,69.96502]
[1727717577926,13.95,154.6,154.55,69.96502]
[1727717578129,13.95,154.6,154.57,3.235]
[1727717578327,3.2348,154.59,154.55,69.96502]
[1727717578829,3.2348,154.59,154.56,3.2353]
[1727717579233,13.95,154.6,154.56,3.2353]
[1727717579433,17.1847,154.6,154.56,3.2353]
[1727717579833,3.2345,154.61,154.58,3.235]
[1727717580030,13.95,154.64,154.55,69.96502]
[1727717580429,17.184,154.64,154.6,3.2345]
[1727717580626,13.95,154.64,154.6,3.2345]
[1727717580836,0.12502,154.73,154.7,3.2325]
[1727717581040,0.12502,154.73,154.66,13.95]
[1727717581041,3.35702,154.73,154.66,13.95]
[1727717581335,0.12502,154.73,154.64,13.95]
[1727717581525,0.12502,154.73,154.63,3.29192038]
[1727717581730,3.2323,154.72,154.63,3.29192038]
[1727717581935,0.12502,154.73,154.62,22.34]
[1727717582130,3.2323,154.71,154.62,22.34]
[1727717582436,0.12502,154.73,154.62,25.64551533]
[1727717582838,3.35692,154.73,154.62,25.64551533]
[1727717584028,3.35692,154.73,154.69,3.2326]
[1727717587644,3.2321,154.72,154.69,3.2326]
[1727717587848,0.12502,154.73,154.67,3.233]
[1727717588144,0.12502,154.73,154.65,2.5433]
[1727717588346,0.12502,154.73,154.7,3.2324]
[1727717589138,0.12502,154.73,154.65,2.5433]
[1727717589341,0.12502,154.73,154.71,3.2322]
[1727717590145,0.12502,154.73,154.7,3.2324]
[1727717591346,3.35692,154.73,154.7,3.2324]
[1727717592752,3.35692,154.73,154.71,3.2323]
[1727717594848,3.35692,154.73,154.7,3.2324]
[1727717595749,3.2321,154.72,154.69,3.2326]
[1727717596755,3.2321,154.72,154.7,3.2325]
[1727717597263,3.2321,154.72,154.69,3.2326]
[1727717599255,0.12502,154.73,154.71,3.2322]
[1727717599752,0.12502,154.73,154.65,2.5433]
[1727717599959,0.12502,154.73,154.72,3.2321]
[1727717600957,0.12502,154.73,154.71,3.2321]
[1727717604152,3.35692,154.73,154.71,3.2321]
[1727717606267,0.12502,154.73,154.7,3.2324]
[1727717606964,3.35692,154.73,154.7,3.2324]
[1727717607872,0.12502,154.73,154.66,83.82]
[1727717608370,3.2324,154.71,154.66,83.82]
[1727717608667,13.98,154.72,154.66,69.84]
[1727717610372,3.2326,154.7,154.68,3.2329]
[1727717612767,3.2321,154.72,154.7,3.2324]
[1727717612967,0.12502,154.73,154.69,13.98]
[1727717613167,106.62413001,154.79,154.69,13.98]
[1727717613363,3.2313,154.76,154.73,3.2317]
[1727717613564,106.62413001,154.79,154.71,4.55447489]
[1727717614065,3.2313,154.76,154.73,3.2318]
[1727717614367,92.64413001,154.79,154.71,15.2574]
[1727717614570,3.35572,154.79,154.73,13.98]
[1727717614758,0.12502,154.79,154.73,13.98]
[1727717614963,0.12502,154.79,154.75,13.98]
[1727717615164,0.12502,154.79,154.78,3.2308]
[1727717615870,0.12502,154.79,154.75,13.98]
[1727717616168,0.12502,154.79,154.77,3.231]
[1727717616365,0.12502,154.79,154.75,13.98]
[1727717616867,14.10502,154.85,154.77,13.98]
[1727717617170,3.23,154.83,154.77,13.98]
[1727717617370,0.12502,154.85,154.77,13.98]
[1727717617559,3.2297,154.84,154.78,1.3368]
[1727717617762,0.12502,154.85,154.78,1.3368]
[1727717618162,0.12502,154.85,154.79,3.2305]
[1727717618970,3.23,154.83,154.8,3.2304]
[1727717619165,3.23,154.83,154.78,1.3368]
[1727717619366,3.2298,154.83,154.78,1.3368]
[1727717619566,3.2298,154.83,154.79,3.2306]
[1727717620075,3.23,154.82,154.79,3.2306]
[1727717620571,0.12502,154.85,154.78,1.3368]
[1727717620770,3.2297,154.84,154.81,3.2302]
[1727717621562,3.35442,154.85,154.82,3.2299]
[1727717621766,0.12502,154.85,154.79,13.98]
[1727717622171,0.12502,154.85,154.82,3.2299]
[1727717622374,1.41542,154.91,154.84,13.98]
[1727717622375,0.12502,154.91,154.84,13.98]
[1727717622674,3.2288,154.88,154.85,15.3104]
[1727717623078,0.12502,154.91,154.85,15.3104]
[1727717623568,3.2287,154.89,154.85,18.5397]
[1727717625278,3.2288,154.88,154.85,15.3104]
[1727717625467,0.12502,154.91,154.87,13.98]
[1727717625865,3.35332,154.91,154.88,1.3308]
[1727717626073,0.12502,154.91,154.88,1.3308]
[1727717626271,0.12502,154.91,154.88,4.5595]
[1727717626476,0.12502,154.91,154.88,1.3308]
[1727717626769,3.2274,154.95,154.91,3.228]
[1727717626974,3.2274,154.95,154.91,13.98]
[1727717627275,0.12502,154.97,154.91,13.98]
[1727717627678,0.12502,154.97,154.91,17.208]
[1727717628271,3.2275,154.95,154.91,17.208]
[1727717629273,0.12502,154.97,154.91,17.208]
[1727717629582,3.2275,154.94,154.91,17.208]
[1727717630382,0.12502,154.97,154.91,13.98]
[1727717630877,3.2274,154.95,154.92,3.2278]
[1727717631078,0.12502,154.97,154.91,13.98]
[1727717631675,3.2276,154.94,154.91,13.98]
[1727717633278,0.12502,154.97,154.89,15.3314]
[1727717633279,3.2279,154.92,154.89,15.3314]
[1727717633476,0.12502,154.97,154.89,85.0914]
[1727717633870,3.2274,154.95,154.91,3.228]
[1727717635581,3.2275,154.94,154.91,13.98]
[1727717636388,3.2277,154.93,154.91,17.208]
[1727717638980,3.2276,154.94,154.91,17.208]
[1727717640481,3.2273,154.95,154.92,3.2278]
[1727717640675,3.2273,154.95,154.91,13.98]
[1727717641078,3.2273,154.95,154.91,15.2083]
[1727717641382,3.2273,154.95,154.92,3.2279]
[1727717642180,0.12502,154.97,154.91,18.4364]
[1727717642181,3.2276,154.94,154.91,18.4364]
[1727717643782,3.2276,154.94,154.92,3.2279]
[1727717647683,3.2276,154.94,154.93,8.93]
[1727717652589,3.2277,154.93,154.92,8.93]
[1727717652892,0.12502,154.97,154.92,8.93]
[1727717653195,0.12502,154.97,154.96,8.93]
[1727717653398,0.12502,154.97,154.96,12.1571]
[1727717653891,0.12502,154.97,154.96,15.39799856]
[1727717654790,0.12502,154.97,154.96,12.1571]
[1727717657593,0.12502,154.97,154.96,8.93]
[1727717658302,3.35192,154.97,154.96,8.93]
[1727717658993,3.2272,154.96,154.94,69.72]
[1727717659196,3.2272,154.96,154.94,78.65]
[1727717659594,0.12502,154.97,154.94,78.65]
[1727717659595,3.2273,154.95,154.94,78.65]
[1727717660989,3.2273,154.95,154.94,69.72]
[1727717661193,8.93,154.95,154.9,10.2919]
[1727717661390,3.2275,154.94,154.9,10.2919]
[1727717661593,3.2275,154.94,154.92,8.93]
[1727717662190,3.2275,154.94,154.9,1.3619]
[1727717662400,3.2275,154.94,154.93,8.93]
[1727717663101,3.2275,154.94,154.9,1.3619]
[1727717663102,3.2277,154.93,154.92,8.93]
[1727717665903,3.2277,154.93,154.9,4.5902]
[1727717666101,3.2277,154.93,154.91,8.93]
[1727717666504,3.2279,154.92,154.91,8.93]
[1727717667005,8.93,154.95,154.91,8.93]
[1727717667301,3.2275,154.94,154.91,8.93]
[1727717668005,3.2275,154.94,154.91,12.1581]
[1727717669701,3.2272,154.96,154.93,3.2276]
[1727717673110,3.2275,154.94,154.92,12.1578]
[1727717673512,8.93,154.96,154.92,12.1578]
[1727717673816,3.2273,154.95,154.92,12.1578]
[1727717676408,8.93,154.96,154.92,12.1578]
[1727717676608,3.2274,154.95,154.92,12.1578]
[1727717676806,9.05502,154.97,154.92,12.1578]
[1727717677003,3.2275,154.95,154.92,12.1578]
[1727717677403,8.93,154.95,154.91,3.2281]
[1727717677604,8.93,154.93,154.87,69.74]
[1727717677915,8.93,154.93,154.88,3.2285]
[1727717678110,3.2276,154.94,154.9,8.93]
[1727717678316,0.12502,154.97,154.91,8.93]
[1727717678509,9.05502,154.97,154.93,12.1576]
[1727717678710,9.05502,154.97,154.93,8.93]
[1727717679307,9.05502,154.97,154.93,12.1576]
[1727717679308,3.2272,154.96,154.93,12.1576]
[1727717680911,0.12502,154.97,154.94,8.93]
[1727717681109,3.35212,154.97,154.94,12.1574]
[1727717681309,0.12502,154.97,154.94,8.93]
[1727717681514,3.2272,154.96,154.94,8.93]
[1727717682519,3.2272,154.96,154.93,12.1576]
[1727717684416,9.05502,154.97,154.91,8.93]
[1727717684814,3.2272,154.96,154.92,3.2279]
[1727717685014,9.05502,154.97,154.93,8.93]
[1727717685519,3.2274,154.95,154.93,8.93]
[1727717687714,3.2274,154.95,154.9,1.3176]
[1727717687715,0.12502,154.97,154.94,8.93]
[1727717687915,3.35192,154.97,154.95,12.1573]
[1727717688312,3.35192,154.97,154.95,8.93]
[1727717688514,0.12502,155.03,154.96,8.93]
[1727717688722,0.12502,155.03,155.0,8.93]
[1727717689024,3.226,155.02,155.0,8.93]
[1727717689232,0.12502,155.03,155.0,8.93]
[1727717690319,3.226,155.01,155.0,8.93]
[1727717691130,9.05502,155.03,154.99,8.93]
[1727717691426,3.2263,155.0,154.99,8.93]
[1727717691729,3.2263,155.0,154.98,8.93]
[1727717693126,3.2263,155.0,154.98,12.1566]
[1727717695025,3.2262,155.0,154.98,12.1566]
[1727717699827,9.05502,155.03,154.98,8.93]
[1727717700032,3.226,155.01,154.99,3.2263]
[1727717700338,0.12502,155.03,155.0,8.93]
[1727717700632,3.35072,155.03,155.0,8.93]
[1727717701025,3.2259,155.02,154.99,12.1563]
[1727717705328,3.2261,155.01,154.98,3.2266]
[1727717705527,0.12502,155.03,154.98,3.2266]
[1727717705528,0.12502,155.03,154.98,12.1566]
[1727717705923,0.12502,155.03,154.98,8.93]
[1727717706124,8.93,155.02,154.97,12.1568]
[1727717706537,3.2264,155.0,154.97,12.1568]
[1727717707235,3.2264,155.0,154.98,12.1566]
[1727717707435,3.2261,155.01,154.98,12.1566]
[1727717708029,3.2261,155.01,154.99,8.93]
[1727717708632,3.2261,155.01,154.99,12.1563]
[1727717709134,9.05502,155.03,154.99,12.1563]
[1727717709330,0.12502,155.03,155.02,8.93]
[1727717709927,0.12502,155.03,155.02,12.1558]
[1727717710132,92.34065564,155.08,155.02,8.93]
[1727717710330,2.6627,155.14,155.07,8.93]
[1727717710331,0.12502,155.09,155.07,8.93]
[1727717710833,3.2246,155.08,155.06,8.93]
[1727717711226,3.2246,155.08,155.06,12.155]
[1727717712031,3.34952,155.09,154.98,1.3009]
[1727717712232,3.34952,155.09,155.06,8.93]
[1727717712626,3.34952,155.09,155.06,12.1548]
[1727717713031,0.12502,155.09,155.06,8.93]
[1727717713232,3.2247,155.08,155.06,8.93]
[1727717713937,3.2247,155.08,155.06,12.155]
[1727717714132,0.12502,155.09,155.07,8.93]
[1727717714332,3.2238,155.12,155.08,8.93]
[1727717714534,3.2238,155.12,155.11,8.93]
[1727717715243,3.2236,155.13,155.11,8.93]
[1727717715738,0.12502,155.15,155.11,8.93]
[1727717715931,3.2237,155.12,155.11,8.93]
[1727717716130,0.12502,155.15,155.11,8.93]
[1727717716431,3.2235,155.14,155.13,8.93]
[1727717717329,3.2235,155.14,155.12,8.93]
[1727717717534,3.2235,155.13,155.12,8.93]
[1727717717829,0.12502,155.15,155.12,8.93]
[1727717718036,0.12502,155.15,155.13,8.93]
[1727717718435,0.12502,155.15,155.12,8.93]
[1727717719041,3.2235,155.13,155.12,8.93]
[1727717720532,9.05502,155.15,155.08,1.321]
[1727717720733,8.93,155.12,155.08,1.321]
[1727717721029,3.2246,155.08,155.07,69.68]
[1727717721936,8.93,155.1,155.05,8.93]
[1727717722130,3.225,155.06,155.05,8.93]
[1727717723030,3.2253,155.05,155.03,0.12502]
[1727717724838,8.93,155.07,155.03,0.12502]
[1727717725437,3.2235478,155.12,155.03,0.12502]
[1727717725642,8.93,155.08,155.03,0.12502]
[1727717725940,3.2251,155.06,155.03,3.35062]
[1727717726330,3.2251,155.06,155.03,0.12502]
[1727717727746,3.2252,155.05,155.03,0.12502]
[1727717728640,3.2254,155.04,155.03,0.12502]
[1727717729653,12.1554,155.04,155.03,0.12502]
[1727717730551,3.2254,155.04,155.03,0.12502]
[1727717732146,12.1554,155.04,155.03,0.12502]
[1727717743159,3.2254,155.04,155.03,0.12502]
[1727717744763,12.1554,155.04,155.03,0.12502]
[1727717751159,8.93,155.04,154.97,0.12502]
[1727717751364,3.2267,154.98,154.97,0.12502]
[1727717753765,12.1567,154.98,154.97,0.12502]
[1727717755173,3.2267,154.98,154.97,0.12502]
[1727717756864,3.2266,154.99,154.97,0.12502]
[1727717757058,1.2737,155.06,154.98,8.93]
[1727717757264,8.93,155.05,155.0,8.93]
[1727717757761,8.93,155.04,155.0,8.93]
[1727717758567,3.2259,155.02,155.0,8.93]
[1727717759468,3.2257,155.03,155.0,12.1562]
[1727717759661,8.93,155.04,155.0,8.93]
[1727717760568,2.1559,155.1,155.02,8.93]
[1727717760769,9.05502,155.09,155.04,8.93]
[1727717760974,0.12502,155.09,155.05,8.93]
[1727717761370,3.2248,155.07,155.05,8.93]
[1727717761568,0.12502,155.09,155.06,8.93]
[1727717761866,0.12502,155.09,154.98,1.2852]
[1727717761867,3.34952,155.09,155.08,8.93]
[1727717762075,0.12502,155.09,155.08,8.93]
[1727717762963,8.93,155.14,155.08,8.93]
[1727717763170,8.93,155.14,155.09,8.93]
[1727717763371,8.93,155.1,155.06,1.2787]
[1727717763574,8.93,155.09,155.06,1.2787]
[1727717763769,3.2247,155.08,155.06,1.2787]
[1727717763965,8.93,155.1,155.06,1.2787]
[1727717764566,3.2245,155.09,155.06,1.2787]
[1727717765166,3.2248,155.07,155.06,1.2787]
[1727717765466,8.93,155.08,155.04,1.2809]
[1727717765665,3.225,155.07,155.04,1.2809]
[1727717767275,3.225,155.07,155.04,4.5063]
[1727717768972,3.2247,155.08,155.05,12.1552]
[1727717769169,8.93,155.11,155.07,8.93]
[1727717769370,0.12502,155.15,155.08,8.93]
[1727717769570,3.2241,155.11,155.08,12.1545]
[1727717769776,8.93,155.13,155.09,8.93]
[1727717769966,8.93,155.14,155.09,8.93]
[1727717770370,3.2237,155.13,155.09,8.93]
[1727717770570,3.2237,155.13,155.1,3.2241]
[1727717770980,3.2237,155.13,155.11,8.93]
[1727717770981,3.2235,155.13,155.11,8.93]
[1727717771179,0.12502,155.15,155.11,8.93]
[1727717771578,3.2235,155.14,155.11,3.2239]
[1727717772678,0.12502,155.15,155.1,1.2741]
[1727717773771,3.2239,155.12,155.1,1.2741]
[1727717774583,0.12502,155.15,155.06,13.94]
[1727717774773,13.94,155.14,155.06,1.3612]
[1727717774974,3.2244,155.09,155.06,1.3612]
[1727717775277,13.94,155.11,155.06,1.3612]
[1727717775881,13.94,155.13,155.06,1.3612]
[1727717776077,3.2242,155.1,155.06,1.3612]
[1727717776277,3.2242,155.1,155.07,3.2247]
[1727717776979,3.2241,155.11,155.08,3.2245]
[1727717778888,3.2242,155.1,155.08,3.2245]
[1727717779379,3.2242,155.1,155.07,3.2247]
[1727717780773,3.2238,155.12,155.09,3.2242]
[1727717781177,14.06502,155.15,155.06,15.3012]
[1727717781683,0.98146279,155.14,155.06,15.3012]
[1727717781879,13.94,155.13,155.06,1.3612]
[1727717782079,3.2242,155.1,155.07,3.2248]
[1727717784585,3.2244,155.09,155.06,1.3612]
[1727717784883,13.94,155.13,155.06,4.5861]
[1727717785079,13.94,155.09,155.04,2.5263]
[1727717785476,3.2251,155.06,155.04,2.5263]
[1727717786180,3.2252,155.05,155.03,69.78502]
[1727717786379,13.94,155.07,155.03,69.78502]
[1727717787382,3.2251,155.06,155.03,69.78502]
[1727717789191,13.94,155.09,155.03,69.78502]
[1727717789384,13.94,155.09,155.03,0.12502]
[1727717789994,3.2249,155.07,155.04,3.2253]
[1727717790496,3.225,155.06,155.04,3.2253]
[1727717793086,3.2247,155.08,155.05,3.2251]
[1727717793292,3.2247,155.08,155.05,1.2778]
[1727717793994,3.2247,155.08,155.05,4.5029]
[1727717796594,3.2244,155.09,155.07,3.2247]
[1727717796895,6.57132,155.15,155.07,8.92]
[1727717796896,8.92,155.12,155.07,8.92]
[1727717797389,0.12502,155.15,155.1,8.92]
[1727717797588,9.04502,155.15,155.1,8.92]
[1727717797788,3.2239,155.12,155.1,8.92]
[1727717798891,3.2234,155.14,155.11,8.92]
[1727717799191,3.2234,155.14,155.08,3.24440467]
[1727717799192,0.12502,155.15,155.12,8.92]
[1727717799490,0.12502,155.15,155.12,12.1437]
[1727717799491,3.34822,155.15,155.12,12.1437]
[1727717800593,0.12502,155.15,155.13,12.1434]
[1727717800988,0.12502,155.15,155.13,8.92]
[1727717802391,0.12502,155.15,155.13,12.1435]
[1727717805991,0.12502,155.15,155.14,8.92]
[1727717809913,0.12502,155.15,155.13,12.1435]
[1727717812103,3.34812,155.15,155.13,8.92]
[1727717812500,0.12502,155.15,155.13,8.92]
[1727717813193,3.2233,155.14,155.13,8.92]
[1727717813598,3.34822,155.15,155.13,8.92]
[1727717814908,3.34822,155.15,155.13,12.1435]